bitfinex-derivatives/quotes_SOLF0:USTF0_20250516
["timestamp","ask_amount","ask_price","bid_price","bid_amount"]
[1747384799412,70.86,169.61,169.49,70.86]
[1747384799627,70.86,169.63,169.49,70.86]
[1747384800315,70.86,169.66,169.49,70.86]
[1747384800521,76.7531,169.65,169.59,5.8949]
[1747384800728,70.86,169.7,169.58,70.86]
[1747384801020,70.86,169.69,169.59,70.86]
[1747384802232,76.7519,169.69,169.63,5.8935]
[1747384802535,76.7519,169.69,169.59,70.86]
[1747384802721,76.7517,169.69,169.63,5.8937]
[1747384803229,70.86,169.69,169.59,70.86]
[1747384803531,70.84,169.73,169.6,80.86729365]
[1747384803731,509.56,169.79,169.61,1.8606]
[1747384803940,141.68,169.78,169.61,1.8606]
[1747384804334,141.68,169.78,169.65,5.893]
[1747384804536,141.68,169.78,169.65,70.84]
[1747384804725,10.02729365,169.76,169.65,70.84]
[1747384805419,5.8899,169.75,169.65,70.84]
[1747384805624,141.68,169.78,169.65,70.84]
[1747384807135,5.8926,169.67,169.65,70.84]
[1747384807338,70.82,169.69,169.61,70.84]
[1747384809133,70.84,169.68,169.56,70.84]
[1747384809535,70.84,169.68,169.57,5.8958]
[1747384809840,70.84,169.68,169.56,70.84]
[1747384810642,5.8948,169.6,169.56,76.7361]
[1747384810829,70.82,169.63,169.56,70.84]
[1747384811740,70.82,169.63,169.61,5.8944]
[1747384812041,70.82,169.67,169.61,5.8944]
[1747384812243,70.82,169.67,169.59,5.8951]
[1747384812244,5.8939,169.63,169.59,5.8951]
[1747384812435,70.82,169.67,169.56,70.84]
[1747384812744,5.8933,169.65,169.61,5.8942]
[1747384812933,70.82,169.67,169.56,70.84]
[1747384813340,5.8942,169.62,169.59,5.8951]
[1747384813542,70.82,169.67,169.56,70.84]
[1747384814445,5.8937,169.64,169.59,5.8949]
[1747384814633,70.82,169.67,169.59,5.8949]
[1747384815044,5.8939,169.63,169.59,5.8949]
[1747384815246,70.82,169.67,169.52,3.963]
[1747384815846,14.44510288,169.66,169.52,3.963]
[1747384816146,70.8,169.65,169.52,3.963]
[1747384816337,70.8,169.65,169.53,70.8]
[1747384816743,5.8939,169.63,169.53,70.8]
[1747384817441,76.6933,169.65,169.53,70.8]
[1747384817647,70.8,169.65,169.53,70.8]
[1747384818149,5.8946,169.61,169.53,70.8]
[1747384818445,70.8,169.65,169.53,70.8]
[1747384818647,5.8943,169.62,169.53,70.8]
[1747384818947,70.8,169.65,169.53,70.8]
[1747384819138,70.8,169.65,169.57,5.8956]
[1747384819340,70.8,169.65,169.56,70.84]
[1747384819850,5.8942,169.62,169.56,70.84]
[1747384820041,70.8,169.65,169.56,70.84]
[1747384820446,70.8,169.65,169.52,74.803]
[1747384821444,5.8943,169.62,169.52,74.803]
[1747384821749,70.8,169.65,169.52,74.803]
[1747384822048,5.8936,169.64,169.52,74.803]
[1747384822352,70.8,169.65,169.52,74.803]
[1747384822554,5.8941,169.63,169.52,74.803]
[1747384822852,70.8,169.65,169.56,5.8959]
[1747384823051,5.8944,169.62,169.52,74.803]
[1747384823245,70.8,169.65,169.52,74.803]
[1747384823653,5.8935,169.64,169.52,74.803]
[1747384823850,70.8,169.65,169.52,74.803]
[1747384824252,5.8936,169.64,169.52,74.803]
[1747384824450,5.8936,169.64,169.6,5.8946]
[1747384824955,76.6932,169.65,169.61,5.8944]
[1747384825155,70.8,169.65,169.61,5.8944]
[1747384825358,70.8,169.65,169.58,70.84]
[1747384825555,5.8939,169.63,169.6,5.8948]
[1747384825861,70.8,169.65,169.6,5.8948]
[1747384826161,5.8936,169.64,169.6,5.8948]
[1747384826346,70.8,169.65,169.61,5.8944]
[1747384826652,70.8,169.65,169.58,70.84]
[1747384827353,5.8936,169.64,169.58,70.84]
[1747384827554,141.64,169.65,169.58,70.84]
[1747384827951,5.895,169.6,169.58,70.84]
[1747384828447,141.64,169.65,169.56,5.896]
[1747384828652,5.895,169.6,169.56,5.896]
[1747384828857,141.64,169.65,169.55,5.8965]
[1747384829059,5.8952,169.59,169.54,70.84]
[1747384829865,5.8952,169.59,169.56,5.896]
[1747384830160,141.64,169.65,169.54,70.84]
[1747384830861,141.64,169.65,169.54,141.62]
[1747384831562,5.8939,169.63,169.54,141.62]
[1747384831760,141.64,169.65,169.54,141.62]
[1747384832063,5.8939,169.63,169.54,141.62]
[1747384832257,141.64,169.65,169.54,70.84]
[1747384832459,141.64,169.65,169.54,141.62]
[1747384832664,5.8942,169.62,169.58,5.8953]
[1747384832859,5.8942,169.62,169.54,141.62]
[1747384833057,141.64,169.65,169.54,141.62]
[1747384833253,5.8939,169.63,169.54,141.62]
[1747384833562,141.64,169.65,169.54,141.62]
[1747384833759,70.84,169.65,169.54,141.62]
[1747384833961,70.78,169.71,169.55,509.44]
[1747384834265,70.78,169.72,169.55,509.44]
[1747384834465,5.8911,169.71,169.55,509.44]
[1747384835359,5.8914,169.7,169.67,5.8922]
[1747384835754,5.8918,169.69,169.66,5.8926]
[1747384835955,70.78,169.72,169.65,70.78]
[1747384837469,70.78,169.72,169.7,5.8912]
[1747384837768,70.78,169.75,169.65,70.78]
[1747384838166,5.8901,169.74,169.7,5.8913]
[1747384838367,70.78,169.75,169.65,70.78]
[1747384838665,5.8901,169.74,169.7,5.8911]
[1747384839061,70.78,169.75,169.65,70.78]
[1747384839261,70.74,169.78,169.65,70.78]
[1747384839576,5.8886,169.78,169.74,5.8899]
[1747384839869,70.74,169.79,169.7,70.76]
[1747384840574,5.8891,169.77,169.7,70.76]
[1747384841070,5.8891,169.77,169.72,5.8903]
[1747384841272,70.74,169.79,169.64,5.7752]
[1747384841570,70.74,169.79,169.7,5.8913]
[1747384841770,5.8897,169.75,169.66,70.76]
[1747384842271,70.74,169.79,169.66,70.76]
[1747384842674,70.74,169.79,169.69,5.8917]
[1747384842864,5.8902,169.74,169.66,70.76]
[1747384843175,237.39987075,169.83,169.7,5.8912]
[1747384843370,141.46,169.82,169.66,70.76]
[1747384843771,11.7752,169.81,169.67,70.74]
[1747384843970,5.8912,169.71,169.67,70.74]
[1747384844177,11.7752,169.81,169.67,70.74]
[1747384844178,70.72,169.74,169.67,70.74]
[1747384844373,70.72,169.73,169.67,70.74]
[1747384844874,70.72,169.73,169.67,76.6323]
[1747384845271,70.72,169.73,169.67,5.8923]
[1747384846270,70.72,169.73,169.65,70.74]
[1747384846475,76.6106,169.73,169.65,70.74]
[1747384846674,76.6106,169.73,169.7,5.8912]
[1747384846976,5.8908,169.72,169.65,70.74]
[1747384847275,5.8908,169.72,169.69,5.8917]
[1747384847577,5.8911,169.71,169.65,70.74]
[1747384847873,70.72,169.73,169.64,5.7752]
[1747384848073,70.72,169.73,169.64,3.9086]
[1747384848266,70.72,169.73,169.62,70.74]
[1747384848677,5.8926,169.67,169.62,70.74]
[1747384848979,5.8926,169.67,169.64,5.8934]
[1747384849169,70.72,169.73,169.62,70.74]
[1747384850477,5.8914,169.7,169.62,70.74]
[1747384850679,70.72,169.73,169.62,70.74]
[1747384850979,17.69,169.72,169.39,17.7058]
[1747384851175,17.69,169.7,169.48,3.7639]
[1747384851371,5.8981,169.51,169.48,3.7639]
[1747384851580,70.68,169.54,169.44,70.74]
[1747384852580,5.8988,169.49,169.44,70.74]
[1747384853182,5.8991,169.48,169.43,5.9005]
[1747384853373,70.68,169.54,169.44,76.6404]
[1747384853574,5.8996,169.47,169.41,3.7639]
[1747384853768,70.68,169.54,169.42,70.74]
[1747384855078,70.68,169.54,169.47,5.8991]
[1747384855274,70.68,169.54,169.42,70.74]
[1747384855275,70.68,169.54,169.44,70.7]
[1747384855673,70.7,169.58,169.44,70.7]
[1747384856474,76.5956,169.58,169.44,70.7]
[1747384856678,70.68,169.62,169.55,5.8965]
[1747384856880,70.68,169.62,169.53,70.76]
[1747384857180,70.68,169.62,169.52,5.8975]
[1747384857367,70.68,169.62,169.51,141.44]
[1747384858181,5.8954,169.59,169.54,5.8967]
[1747384858379,70.68,169.62,169.54,5.8967]
[1747384858680,5.8954,169.59,169.54,5.8967]
[1747384858885,5.8954,169.59,169.55,5.8965]
[1747384859274,70.68,169.62,169.46,509.36]
[1747384859476,70.68,169.62,169.51,5.8978]
[1747384860381,5.8973,169.53,169.5,5.8982]
[1747384860583,70.68,169.59,169.5,5.8982]
[1747384860780,70.68,169.59,169.52,5.8976]
[1747384861085,70.68,169.59,169.48,1.9319]
[1747384861276,70.68,169.59,169.51,5.8978]
[1747384861477,70.68,169.59,169.48,1.9319]
[1747384861773,70.68,169.59,169.52,5.8976]
[1747384861983,5.8966,169.55,169.48,1.9319]
[1747384862185,70.68,169.59,169.48,1.9319]
[1747384862385,240.38526315,169.64,169.48,1.9319]
[1747384862586,5.8944,169.62,169.48,1.9319]
[1747384862775,311.06526315,169.64,169.58,5.8952]
[1747384863085,311.06526315,169.64,169.57,70.68]
[1747384863086,76.5735,169.64,169.57,70.68]
[1747384863385,70.68,169.64,169.58,70.68]
[1747384863684,5.8944,169.62,169.58,70.68]
[1747384863884,5.8944,169.62,169.55,70.68]
[1747384863885,70.68,169.64,169.56,70.68]
[1747384864981,5.8945,169.61,169.56,70.68]
[1747384865173,70.68,169.64,169.56,70.68]
[1747384865487,5.8942,169.62,169.58,5.8955]
[1747384866080,70.68,169.64,169.59,5.8949]
[1747384866279,70.68,169.64,169.56,72.6437]
[1747384866479,70.68,169.64,169.55,3.8182]
[1747384866480,5.896,169.57,169.55,3.8182]
[1747384866685,70.68,169.64,169.55,3.8182]
[1747384867484,70.68,169.64,169.61,5.8945]
[1747384867679,70.68,169.64,169.58,70.68]
[1747384867883,70.68,169.67,169.58,70.68]
[1747384868187,70.66,169.68,169.58,70.68]
[1747384868489,5.8925,169.67,169.58,70.68]
[1747384868689,70.68,169.71,169.58,70.68]
[1747384868895,70.66,169.7,169.58,70.68]
[1747384869495,70.66,169.73,169.58,70.68]
[1747384870087,5.8926,169.67,169.59,70.68]
[1747384870285,70.66,169.73,169.59,70.68]
[1747384871891,5.8921,169.68,169.64,5.8932]
[1747384872190,5.8921,169.68,169.64,76.5732]
[1747384872391,5.8921,169.68,169.64,76.5733]
[1747384872586,70.66,169.73,169.64,70.68]
[1747384873889,70.66,169.73,169.65,4.0031]
[1747384874195,70.62,169.72,169.65,4.0031]
[1747384874388,70.62,169.72,169.65,9.8961]
[1747384874895,5.892,169.69,169.65,9.8961]
[1747384875083,70.62,169.72,169.65,4.0031]
[1747384875588,141.3,169.75,169.65,4.0031]
[1747384875984,5.8904,169.73,169.69,5.8914]
[1747384876190,5.8904,169.73,169.65,4.0031]
[1747384876391,5.8908,169.72,169.65,4.0031]
[1747384876897,5.8917,169.7,169.65,4.0031]
[1747384877093,141.3,169.75,169.65,4.0031]
[1747384877494,5.8922,169.68,169.65,4.0031]
[1747384877694,141.3,169.75,169.65,4.0031]
[1747384877895,141.3,169.75,169.66,5.8925]
[1747384878097,141.3,169.75,169.65,4.0031]
[1747384878897,141.3,169.75,169.69,5.8914]
[1747384879398,141.3,169.75,169.67,5.8923]
[1747384879898,141.3,169.75,169.65,4.0031]
[1747384880293,5.8913,169.71,169.68,5.8918]
[1747384880498,141.3,169.75,169.66,70.66]
[1747384880998,5.8915,169.7,169.67,5.8921]
[1747384881194,141.3,169.75,169.66,70.66]
[1747384881398,141.3,169.75,169.67,70.66]
[1747384882703,5.8904,169.73,169.69,5.8915]
[1747384883006,141.3,169.75,169.67,70.66]
[1747384883297,70.62,169.75,169.67,70.66]
[1747384883701,70.56,169.78,169.67,70.66]
[1747384883900,5.8896,169.75,169.67,70.66]
[1747384884100,70.66,169.79,169.67,70.66]
[1747384884301,5.8891,169.77,169.73,5.89]
[1747384884692,5.8891,169.77,169.72,70.64]
[1747384885002,308.25630913,169.81,169.72,70.64]
[1747384885398,5.8888,169.78,169.72,70.64]
[1747384885903,5.8888,169.78,169.74,5.8897]
[1747384886099,5.889,169.77,169.72,70.64]
[1747384886305,308.25630913,169.81,169.72,70.64]
[1747384886496,308.25630913,169.81,169.68,141.18]
[1747384887501,308.25630913,169.81,169.69,5.8915]
[1747384887706,308.25630913,169.81,169.68,70.64]
[1747384888098,308.25630913,169.81,169.71,5.8908]
[1747384888305,308.25630913,169.81,169.68,70.64]
[1747384888707,5.8908,169.72,169.68,76.5317]
[1747384888901,70.52,169.76,169.68,76.5317]
[1747384889103,70.52,169.76,169.68,70.64]
[1747384889503,35.3429,169.91,169.68,70.64]
[1747384889504,11.77,169.89,169.68,70.64]
[1747384889707,5.8864,169.85,169.68,70.64]
[1747384889911,70.5,169.88,169.68,70.64]
[1747384890605,70.5,169.88,169.7,11.7822]
[1747384890809,70.5,169.88,169.71,70.5]
[1747384891301,5.8865,169.84,169.71,70.5]
[1747384891498,70.5,169.88,169.71,70.5]
[1747384891896,70.5,169.87,169.71,70.5]
[1747384892399,5.8861,169.86,169.72,11.781]
[1747384892595,70.5,169.87,169.73,70.5]
[1747384892808,70.5,169.87,169.74,5.7381]
[1747384893012,5.8871,169.83,169.79,5.888]
[1747384893304,70.5,169.87,169.79,5.888]
[1747384893499,5.8871,169.83,169.79,5.888]
[1747384893900,70.5,169.87,169.78,76.3886]
[1747384894102,70.5,169.87,169.76,70.5]
[1747384894501,70.5,169.87,169.77,5.8887]
[1747384894900,70.5,169.87,169.76,70.5]
[1747384895408,70.5,169.87,169.77,5.8888]
[1747384895605,70.5,169.87,169.76,70.5]
[1747384896007,70.5,169.87,169.78,5.8885]
[1747384896709,5.8874,169.82,169.79,5.8882]
[1747384896908,70.5,169.87,169.74,5.7381]
[1747384897103,11.7718,169.86,169.75,70.48]
[1747384897313,70.48,169.85,169.74,5.8897]
[1747384897502,70.48,169.85,169.71,70.48]
[1747384897702,70.48,169.85,169.7,70.48]
[1747384897903,70.48,169.85,169.72,5.8904]
[1747384898098,70.48,169.85,169.7,70.48]
[1747384898510,5.8897,169.75,169.72,5.8904]
[1747384898706,70.44,169.79,169.68,2.023]
[1747384898906,70.44,169.78,169.69,70.48]
[1747384899310,5.8898,169.75,169.72,5.8903]
[1747384900005,70.44,169.78,169.68,2.023]
[1747384900310,70.44,169.78,169.67,72.4282]
[1747384901008,70.44,169.78,169.67,70.48]
[1747384901699,5.8909,169.72,169.69,5.8916]
[1747384902111,70.44,169.78,169.67,70.48]
[1747384902910,5.8916,169.7,169.67,70.48]
[1747384903207,5.8916,169.7,169.63,2.0003]
[1747384903411,5.8916,169.7,169.64,70.5]
[1747384903812,5.8911,169.71,169.64,70.5]
[1747384904112,5.8911,169.71,169.68,5.8918]
[1747384904309,70.42,169.73,169.64,70.5]
[1747384904613,70.4,169.78,169.68,5.892]
[1747384905309,70.4,169.78,169.67,5.8922]
[1747384905610,70.4,169.78,169.65,70.5]
[1747384906111,5.8909,169.72,169.65,70.5]
[1747384906314,70.4,169.78,169.65,70.5]
[1747384906811,5.8905,169.73,169.69,5.8914]
[1747384907009,70.4,169.78,169.69,5.8914]
[1747384907406,70.4,169.78,169.7,5.8913]
[1747384907602,70.4,169.77,169.7,5.8913]
[1747384907810,70.4,169.77,169.65,70.5]
[1747384908008,70.4,169.77,169.66,1.9824]
[1747384908205,70.4,169.77,169.72,5.8904]
[1747384908608,70.4,169.77,169.68,70.4]
[1747384908812,70.4,169.77,169.68,70.5]
[1747384909013,70.4,169.77,169.67,1.8392]
[1747384909412,2.66071656,169.76,169.67,1.8392]
[1747384909612,70.4,169.77,169.67,1.8392]
[1747384909815,2.66337865,169.76,169.67,1.8392]
[1747384910016,70.4,169.77,169.67,1.8392]
[1747384910213,2.66339907,169.76,169.67,1.8392]
[1747384910413,2.66339907,169.75,169.64,70.5]
[1747384913518,5.8932,169.65,169.63,72.5003]
[1747384914522,5.8932,169.65,169.63,78.3941]
[1747384915019,5.8929,169.66,169.63,78.3941]
[1747384915321,70.38,169.72,169.63,72.5003]
[1747384915620,2.66332277,169.71,169.61,70.52]
[1747384915817,82.1618,169.72,169.61,70.52]
[1747384916121,5.8938,169.63,169.61,70.52]
[1747384916315,82.1618,169.72,169.61,76.4144]
[1747384917122,5.8935,169.64,169.61,76.4144]
[1747384917316,82.1618,169.72,169.61,70.52]
[1747384917511,2.66338165,169.71,169.61,70.52]
[1747384917715,82.1618,169.72,169.61,70.52]
[1747384917922,2.66295003,169.71,169.61,70.52]
[1747384918222,82.1618,169.72,169.61,70.52]
[1747384918418,70.38,169.72,169.58,509.02]
[1747384918623,5.8955,169.58,169.57,70.52]
[1747384919119,70.34,169.64,169.57,70.52]
[1747384919622,70.34,169.64,169.58,5.8953]
[1747384919815,5.8949,169.6,169.57,70.52]
[1747384920015,70.34,169.64,169.57,70.52]
[1747384920623,70.34,169.68,169.6,5.8946]
[1747384920822,5.8933,169.65,169.58,70.34]
[1747384921125,70.34,169.68,169.63,5.8937]
[1747384921321,70.34,169.7,169.62,70.34]
[1747384921626,70.34,169.7,169.63,1.9315]
[1747384921924,70.34,169.7,169.63,3.879]
[1747384922221,70.34,169.7,169.63,9.7727]
[1747384922426,70.34,169.7,169.63,3.879]
[1747384922718,70.34,169.7,169.62,70.34]
[1747384922922,70.34,169.7,169.58,72.2116]
[1747384923225,2.65895164,169.69,169.58,72.2116]
[1747384923521,70.34,169.7,169.58,72.2116]
[1747384923720,5.8951,169.6,169.58,72.2116]
[1747384923925,70.32,169.64,169.58,72.2116]
[1747384924524,5.8952,169.59,169.58,1.8716]
[1747384925117,5.8949,169.6,169.58,1.8716]
[1747384925325,70.32,169.64,169.58,1.8716]
[1747384925623,5.8959,169.57,169.56,72.17]
[1747384925821,5.8959,169.57,169.56,1.83]
[1747384927019,70.3,169.59,169.52,70.36]
[1747384927421,5.8959,169.57,169.52,72.3371]
[1747384927825,70.3,169.59,169.54,5.8968]
[1747384928119,70.3,169.59,169.52,72.3371]
[1747384928324,70.3,169.59,169.55,5.8964]
[1747384928521,70.3,169.59,169.52,72.3371]
[1747384929224,70.3,169.59,169.53,70.36]
[1747384929425,70.3,169.59,169.53,76.2572]
[1747384929625,70.3,169.59,169.53,70.36]
[1747384930326,70.3,169.61,169.53,70.36]
[1747384930919,70.36,169.64,169.53,70.36]
[1747384931216,76.1939,169.63,169.53,70.36]
[1747384931420,70.36,169.64,169.53,70.36]
[1747384931624,5.8925,169.67,169.53,70.36]
[1747384931924,70.36,169.69,169.53,70.36]
[1747384932128,70.28,169.71,169.69,5.8916]
[1747384932327,70.28,169.71,169.63,70.36]
[1747384932524,70.28,169.71,169.64,5.7484]
[1747384933329,5.8916,169.7,169.64,5.7484]
[1747384933727,76.1711,169.71,169.64,5.7484]
[1747384933929,70.36,169.73,169.64,5.7484]
[1747384934225,140.64,169.73,169.64,5.7484]
[1747384935234,70.36,169.77,169.64,5.7484]
[1747384935425,70.26,169.75,169.68,5.8918]
[1747384935835,70.26,169.75,169.64,5.7484]
[1747384936132,5.8903,169.73,169.69,5.8915]
[1747384936430,70.26,169.75,169.64,5.7484]
[1747384937027,70.26,169.75,169.66,5.8926]
[1747384937338,70.26,169.75,169.64,5.7484]
[1747384937735,5.8918,169.69,169.65,5.8928]
[1747384937938,5.8918,169.69,169.64,5.7484]
[1747384938829,5.8914,169.7,169.66,5.8925]
[1747384939038,70.26,169.75,169.64,5.7484]
[1747384939432,70.26,169.75,169.67,5.8922]
[1747384939730,70.26,169.75,169.57,74.38232]
[1747384939731,2.65776078,169.74,169.57,74.38232]
[1747384940030,5.8939,169.63,169.59,5.895]
[1747384940226,70.22,169.66,169.58,3.7925]
[1747384940423,70.22,169.65,169.58,3.7925]
[1747384941033,70.22,169.65,169.57,74.38232]
[1747384941230,11.7816,169.72,169.57,74.38232]
[1747384941433,70.22,169.69,169.57,74.38232]
[1747384941936,70.22,169.69,169.6,5.8948]
[1747384942235,70.22,169.69,169.57,74.38232]
[1747384942837,70.22,169.69,169.58,70.2]
[1747384943137,5.8931,169.65,169.62,5.8939]
[1747384943633,5.8929,169.66,169.62,5.8939]
[1747384943943,5.8929,169.66,169.63,5.8938]
[1747384944235,5.8925,169.67,169.58,70.2]
[1747384944433,5.8925,169.67,169.64,5.8933]
[1747384944736,70.22,169.69,169.58,70.2]
[1747384944937,5.8923,169.68,169.58,70.2]
[1747384945238,70.36,169.71,169.66,5.8927]
[1747384945435,5.892,169.69,169.63,70.36]
[1747384945636,70.36,169.71,169.65,5.8929]
[1747384945933,5.8919,169.69,169.65,5.8929]
[1747384946229,70.36,169.71,169.65,5.8929]
[1747384946431,140.54,169.71,169.65,5.8929]
[1747384946636,5.8919,169.69,169.65,5.8929]
[1747384946839,140.54,169.71,169.65,5.8929]
[1747384947040,5.892,169.69,169.65,5.8929]
[1747384947240,140.54,169.71,169.65,5.8929]
[1747384947431,140.54,169.71,169.64,5.8933]
[1747384947939,5.8923,169.68,169.65,5.893]
[1747384948138,140.54,169.71,169.63,70.36]
[1747384948438,5.8921,169.68,169.63,70.36]
[1747384948633,140.54,169.71,169.63,70.36]
[1747384948834,70.18,169.71,169.64,3.8261]
[1747384949039,70.18,169.71,169.64,5.7494]
[1747384949341,380.71809349,169.75,169.64,5.7494]
[1747384949645,5.8905,169.73,169.64,5.7494]
[1747384949838,380.71809349,169.75,169.64,5.7494]
[1747384950144,380.71809349,169.75,169.69,5.8914]
[1747384950336,380.71809349,169.75,169.64,5.7494]
[1747384950645,240.21809349,169.75,169.73,5.8903]
[1747384950942,140.3,169.79,169.7,70.16]
[1747384951143,140.3,169.79,169.71,70.16]
[1747384951345,140.3,169.79,169.72,1.9956]
[1747384951532,70.16,169.79,169.72,1.9956]
[1747384951732,5.8889,169.78,169.73,5.8902]
[1747384951934,70.16,169.79,169.73,5.8902]
[1747384952442,5.8891,169.77,169.73,5.8902]
[1747384953245,70.16,169.79,169.75,5.8895]
[1747384953442,70.14,169.81,169.75,5.8895]
[1747384953642,70.14,169.81,169.72,5.8736]
[1747384953842,5.8885,169.79,169.75,5.8894]
[1747384954342,70.14,169.81,169.72,5.8736]
[1747384954544,5.8879,169.8,169.72,5.8736]
[1747384954846,70.14,169.81,169.72,5.8736]
[1747384955043,70.14,169.87,169.79,5.8882]
[1747384955243,70.12,169.85,169.79,5.8882]
[1747384955651,5.8874,169.82,169.79,5.8882]
[1747384956041,5.8864,169.85,169.77,70.14]
[1747384956550,70.1,169.88,169.83,5.8868]
[1747384956848,70.1,169.88,169.77,70.14]
[1747384957243,5.8857,169.87,169.77,70.14]
[1747384957838,5.8848,169.89,169.77,70.14]
[1747384958449,5.8845,169.9,169.86,5.8858]
[1747384959143,5.884,169.92,169.85,3.7458]
[1747384959353,70.06,169.93,169.85,3.7458]
[1747384959550,5.8835,169.93,169.9,5.8844]
[1747384959950,5.8835,169.93,169.85,3.7458]
[1747384960153,5.8838,169.92,169.88,5.885]
[1747384960351,70.1,169.95,169.85,3.7458]
[1747384960653,70.1,169.95,169.85,73.8458]
[1747384960952,70.1,169.95,169.87,5.8854]
[1747384961456,5.8838,169.92,169.88,5.885]
[1747384961649,70.1,169.95,169.85,73.8458]
[1747384961853,70.04,169.96,169.85,73.8458]
[1747384962053,5.8833,169.94,169.91,5.884]
[1747384962353,70.04,169.96,169.91,5.884]
[1747384962552,70.04,169.96,169.85,73.8458]
[1747384962858,5.8831,169.94,169.9,5.8843]
[1747384963154,70.04,169.96,169.85,73.8458]
[1747384964053,5.8827,169.95,169.85,73.8458]
[1747384964753,70.0,169.98,169.85,73.8458]
[1747384965557,75.882,169.98,169.85,73.8458]
[1747384965852,70.0,169.98,169.85,73.8458]
[1747384966154,69.98,169.99,169.92,5.8834]
[1747384966547,70.08,170.01,169.91,70.08]
[1747384966755,5.8823,169.97,169.93,5.8833]
[1747384966950,69.98,169.99,169.91,70.08]
[1747384967557,69.98,169.99,169.92,5.8836]
[1747384967558,5.8826,169.96,169.92,5.8836]
[1747384967858,5.8826,169.96,169.91,70.08]
[1747384968856,5.8821,169.97,169.93,5.8833]
[1747384969159,69.94,169.99,169.93,5.8833]
[1747384969356,70.08,170.01,169.95,5.8827]
[1747384969555,69.94,169.99,169.95,5.8827]
[1747384969755,5.882,169.97,169.91,70.08]
[1747384970055,69.94,169.99,169.94,5.883]
[1747384970360,5.8819,169.98,169.94,5.883]
[1747384971054,5.8814,169.99,169.91,70.08]
[1747384971755,5.8811,170.0,169.91,70.08]
[1747384971956,69.92,170.01,169.91,70.08]
[1747384972366,5.8824,169.96,169.93,5.8832]
[1747384973167,5.8821,169.97,169.93,5.8832]
[1747384973463,69.9,170.0,169.95,5.8826]
[1747384973759,69.9,170.0,169.91,70.08]
[1747384973960,69.9,170.0,169.96,5.8823]
[1747384974158,69.9,170.0,169.91,70.08]
[1747384974354,5.8817,169.98,169.91,70.08]
[1747384974657,69.9,170.0,169.91,70.08]
[1747384975264,445.22077108,170.02,169.91,70.08]
[1747384975864,5.8814,169.99,169.95,5.8824]
[1747384976257,5.8814,169.99,169.91,70.08]
[1747384976658,5.8816,169.98,169.91,70.08]